bitfinex-derivatives/quotes_BNBF0:USTF0_20250128
["timestamp","ask_amount","ask_price","bid_price","bid_amount"]
[1738058131839,0.27208333,675.89,674.82,0.29637532]
[1738058132040,0.27208333,675.9,674.82,0.29637532]
[1738058132241,0.27208333,675.89,674.82,0.29637532]
[1738058132441,0.27208333,675.9,674.82,0.29637532]
[1738058132637,0.27208333,675.89,674.82,0.29637532]
[1738058132943,0.27208333,675.88,674.82,0.29637532]
[1738058133143,0.27208333,675.9,674.82,0.29637532]
[1738058133343,0.27208333,675.89,674.82,0.29637532]
[1738058133545,0.27208333,675.9,674.82,0.29637532]
[1738058133744,0.27208333,675.89,674.82,0.29637532]
[1738058133944,0.27208333,675.9,674.82,0.29637532]
[1738058134243,0.27208333,675.89,674.82,0.29637532]
[1738058134443,0.27208333,675.88,674.82,0.29637532]
[1738058134745,0.27208333,675.87,674.82,0.29637532]
[1738058134943,0.27208333,675.9,674.82,0.29637532]
[1738058135243,0.27208333,675.89,674.82,0.29637532]
[1738058135439,0.27208333,675.9,674.82,0.29637532]
[1738058135643,0.27208333,675.89,674.82,0.29637532]
[1738058135844,1.10978108,675.91,674.82,0.29637532]
[1738058135845,0.27208333,675.9,674.82,0.29637532]
[1738058136045,0.27208333,675.89,674.82,0.29637532]
[1738058136237,0.27208333,675.9,674.82,0.29637532]
[1738058136439,0.27208333,675.89,674.82,0.29637532]
[1738058136641,0.27208333,675.88,674.82,0.29637532]
[1738058136843,0.27208333,675.87,674.82,0.29637532]
[1738058137039,1.10978108,675.87,674.82,1.4061564]
[1738058137239,0.27208333,675.86,674.82,1.4061564]
[1738058137644,1.10978108,675.87,674.82,1.4061564]
[1738058140745,1.10978108,676.06,674.82,0.29637532]
[1738058140943,0.27204921,676.05,674.82,0.29637532]
[1738058143451,0.27203788,676.04,674.82,0.29637532]
[1738058143748,0.27203788,676.03,674.82,0.29637532]
[1738058143944,1.10978108,676.06,674.82,0.29637532]
[1738058144144,0.27204127,676.05,674.82,0.29637532]
[1738058144344,0.27204127,676.04,674.82,0.29637532]
[1738058144546,0.27204127,676.03,674.82,0.29637532]
[1738058144742,0.27204127,676.09,674.82,0.29637532]
[1738058144947,0.27204127,676.08,674.82,0.29637532]
[1738058145147,0.27204127,676.09,674.82,0.29637532]
[1738058145351,0.27204127,676.08,674.82,0.29637532]
[1738058145545,0.27204127,676.09,674.82,0.29637532]
[1738058145745,0.27204127,676.08,674.82,0.29637532]
[1738058145940,1.10978108,676.1,674.82,0.29637532]
[1738058145941,0.27204127,676.07,674.82,0.29637532]
[1738058146146,0.27204127,676.06,674.82,0.29637532]
[1738058146346,0.27204127,676.09,674.82,0.29637532]
[1738058146549,0.27204127,676.08,674.82,0.29637532]
[1738058146743,0.27204127,676.09,674.82,0.29637532]
[1738058147047,0.27204127,676.08,674.82,0.29637532]
[1738058147247,0.27204127,676.07,674.82,0.29637532]
[1738058147448,0.27204127,676.06,674.82,0.29637532]
[1738058147650,1.10978108,676.11,674.82,0.29637532]
[1738058147949,0.27203566,676.1,674.82,0.29637532]
[1738058148346,1.10978108,676.11,674.82,0.29637532]
[1738058148548,0.27204355,676.1,674.82,0.29637532]
[1738058150349,0.27204355,676.09,674.82,0.29637532]
[1738058150546,0.27204355,676.08,674.82,0.29637532]
[1738058150749,0.27204355,676.12,674.82,0.29637532]
[1738058150945,0.27204355,676.11,674.82,0.29637532]
[1738058151151,0.27204355,676.12,674.82,0.29637532]
[1738058151352,0.27204355,676.11,674.82,0.29637532]
[1738058151651,0.27204355,676.1,674.82,0.29637532]
[1738058151852,0.27204355,676.12,674.82,0.29637532]
[1738058152053,0.27204355,676.11,674.82,0.29637532]
[1738058152355,0.27204355,676.1,674.82,0.29637532]
[1738058152551,0.27204355,676.12,674.82,0.29637532]
[1738058152853,0.27204355,676.11,674.82,0.29637532]
[1738058153064,0.27204355,676.1,674.82,0.29637532]
[1738058153256,0.27204355,676.09,674.82,0.29637532]
[1738058153457,1.5455104,676.13,674.82,0.29637532]
[1738058153750,0.27204426,676.12,674.82,0.29637532]
[1738058155151,1.5455104,676.13,674.82,0.29637532]
[1738058155355,0.272046,676.12,674.82,0.29637532]
[1738058158660,0.27207405,676.11,674.82,0.29637532]
[1738058158861,0.27207405,676.1,674.82,0.29637532]
[1738058159060,0.27207405,676.09,674.82,0.29637532]
[1738058159361,1.5455104,676.13,674.82,0.29637532]
[1738058159362,0.27207405,676.08,674.82,0.29637532]
[1738058159557,0.27207405,676.12,674.82,0.29637532]
[1738058160265,1.5455104,676.13,674.82,0.29637532]
[1738058160462,0.27204694,676.12,674.82,0.29637532]
[1738058161458,0.27204694,676.13,674.82,0.29637532]
[1738058161763,0.27204694,676.12,674.82,0.29637532]
[1738058162162,0.27204694,676.11,674.82,0.29637532]
[1738058162466,0.27204694,676.1,674.82,0.29637532]
[1738058162661,0.27204694,676.13,674.82,0.29637532]
[1738058162862,0.27204694,676.12,674.82,0.29637532]
[1738058163059,0.27204694,676.13,674.82,0.29637532]
[1738058163259,0.27204694,676.12,674.82,0.29637532]
[1738058163460,1.10978108,676.14,674.82,0.29637532]
[1738058163461,0.27204694,676.11,674.82,0.29637532]
[1738058163657,1.10978108,676.07,674.84,1.10978108]
[1738058163863,0.27204694,676.06,674.84,1.10978108]
[1738058164163,0.27204694,676.06,674.85,0.29636215]
[1738058166569,1.10978108,676.05,674.87,1.10978108]
[1738058166770,0.27204694,676.04,674.88,0.29634898]
[1738058168968,0.27204211,676.03,674.89,1.10978108]
[1738058169167,0.27204211,676.06,674.89,1.10978108]
[1738058169366,0.27204211,676.05,674.89,1.10978108]
[1738058169567,0.27204211,676.04,674.9,0.29634019]
[1738058169767,0.27204211,676.03,674.9,0.29634019]
[1738058170063,0.27204211,676.02,674.9,0.29634019]
[1738058170368,0.27204211,676.01,674.9,0.29634019]
[1738058170566,0.27204211,676.06,674.9,0.29634019]
[1738058170765,0.27204211,676.05,674.9,0.29634019]
[1738058170965,0.27204211,676.04,674.9,0.29634019]
[1738058171163,0.27204211,676.06,674.9,0.29634019]
[1738058171469,0.27204211,676.05,674.9,0.29634019]
[1738058171870,0.27204211,676.05,674.94,1.10978108]
[1738058172170,0.27204211,676.04,674.94,1.10978108]
[1738058172370,0.27204211,676.05,674.94,1.10978108]
[1738058172566,0.27204211,676.04,674.94,1.10978108]
[1738058172767,0.27204211,676.05,674.94,1.10978108]
[1738058172967,0.27204211,676.04,674.94,1.10978108]
[1738058173269,0.27204211,676.03,674.94,1.10978108]
[1738058173464,0.27204211,676.05,674.94,1.10978108]
[1738058173669,0.27204211,676.04,674.94,1.10978108]
[1738058173864,0.27204211,676.03,674.94,1.10978108]
[1738058174069,0.27204211,676.05,674.94,1.10978108]
[1738058174268,0.27204211,676.04,674.94,1.10978108]
[1738058174468,0.27203154,676.03,674.94,1.10978108]
[1738058174669,1.10978108,676.04,674.94,1.10978108]
[1738058174864,0.27203154,676.03,674.94,1.10978108]
[1738058175069,0.27203152,676.02,674.94,1.10978108]
[1738058175265,0.27203152,676.03,674.94,1.10978108]
[1738058175469,0.27203152,676.02,674.94,1.10978108]
[1738058175871,0.27203152,676.01,674.94,1.10978108]
[1738058176169,1.10978108,676.04,674.94,1.10978108]
[1738058176170,0.27203603,676.0,674.94,1.10978108]
[1738058176373,1.10978108,676.04,674.94,1.10978108]
[1738058176673,0.27203449,676.03,674.94,1.10978108]
[1738058178175,0.27203449,676.03,674.95,1.10978108]
[1738058178377,0.27203449,676.04,674.95,1.10978108]
[1738058178572,0.27203449,676.03,674.95,1.10978108]
[1738058178773,0.27203449,676.04,674.95,1.10978108]
[1738058178971,0.27203449,676.03,674.95,1.10978108]
[1738058179170,0.27203449,676.04,674.95,1.10978108]
[1738058179470,0.27203449,676.03,674.95,1.10978108]
[1738058179675,0.27203449,676.02,674.95,1.10978108]
[1738058179975,0.27203449,676.01,674.95,1.10978108]
[1738058180175,1.10978108,676.05,674.95,1.10978108]
[1738058180377,0.2720125,676.04,674.95,1.10978108]
[1738058181176,1.10978108,676.05,674.95,1.40609932]
[1738058181378,0.27201065,676.04,674.95,1.40609932]
[1738058181879,0.27201065,676.04,675.0,1.10978108]
[1738058185574,0.27201065,676.04,674.95,0.29631824]
[1738058185575,0.27201065,676.04,675.06,1.10978108]
[1738058185879,0.27201065,676.03,675.06,1.10978108]
[1738058186080,0.27201065,676.05,675.06,1.10978108]
[1738058186380,0.27201065,676.04,675.06,1.10978108]
[1738058186680,0.27201065,676.03,675.06,1.10978108]
[1738058186881,0.27201065,676.02,675.06,1.10978108]
[1738058187182,0.27201065,676.01,675.06,1.10978108]
[1738058187482,0.27201065,676.0,675.06,1.10978108]
[1738058187676,0.27201065,676.05,675.06,1.10978108]
[1738058187880,1.10978108,676.06,675.06,1.10978108]
[1738058187881,0.27201065,676.04,675.06,1.10978108]
[1738058188085,0.27201828,676.03,675.05,1.10978108]
[1738058189788,1.10978108,676.04,675.05,1.10978108]
[1738058189989,0.27202737,676.03,675.05,1.10978108]
[1738058190689,1.10978108,676.0,675.08,1.10978108]
[1738058190889,0.27202737,675.99,675.08,1.10978108]
[1738058193289,0.27201814,675.98,675.08,1.10978108]
[1738058193489,0.27201814,675.97,675.08,1.10978108]
[1738058193691,0.27201814,675.99,675.08,1.10978108]
[1738058193890,0.27201814,675.98,675.08,1.10978108]
[1738058194086,0.27201814,675.97,675.08,1.10978108]
[1738058194392,0.27201814,675.96,675.08,1.10978108]
[1738058194690,0.27201814,675.95,675.08,1.10978108]
[1738058194889,0.27201814,675.98,675.08,1.10978108]
[1738058195091,1.10978108,675.99,675.08,1.10978108]
[1738058195390,0.27201767,675.98,675.08,1.10978108]
[1738058196587,1.10978108,675.99,675.08,1.10978108]
[1738058196789,0.27201139,675.98,675.08,1.10978108]
[1738058197592,0.27201139,675.98,675.03,1.10978108]
[1738058197889,0.27201139,675.97,675.03,1.10978108]
[1738058198092,0.27201139,675.96,675.03,1.10978108]
[1738058198293,1.10978108,676.04,675.03,1.10978108]
[1738058198495,0.27201886,676.03,675.03,1.10978108]
[1738058201295,1.38179994,676.03,675.04,1.10978108]
[1738058201495,0.27201886,676.02,675.04,1.10978108]
[1738058203497,1.10978108,676.03,675.04,1.10978108]
[1738058204493,1.10978108,675.94,675.08,1.10978108]
[1738058207203,1.10978108,675.94,675.09,0.29625679]
[1738058207404,1.10978108,676.17,675.09,0.29625679]
[1738058209803,1.54508153,676.36,675.09,0.29625679]
[1738058210102,0.27194812,676.35,675.09,0.29625679]
[1738058210803,1.54508153,676.36,675.09,0.29625679]
[1738058222106,0.27197354,676.35,675.09,0.29625679]
[1738058224507,1.54508153,676.36,675.09,0.29625679]
[1738058224703,0.27195125,676.35,675.09,0.29625679]
[1738058229115,1.54508153,676.36,675.09,0.29625679]
[1738058241522,0.27197112,676.35,675.09,0.29625679]
[1738058241717,1.54508153,676.36,675.09,0.29625679]
[1738058241921,0.27197345,676.35,675.09,0.29625679]
[1738058243321,1.54508153,676.36,675.09,0.29625679]
[1738058243522,0.27197521,676.35,675.09,0.29625679]
[1738058244929,1.10978108,676.29,675.09,0.29625679]
[1738058245123,0.27197521,676.28,675.09,0.29625679]
[1738058246927,0.27197293,676.27,675.09,0.29625679]
[1738058247122,0.27197293,676.26,675.09,0.29625679]
[1738058247326,0.27197293,676.25,675.09,0.29625679]
[1738058247526,0.27197293,676.24,675.09,0.29625679]
[1738058247727,1.54508153,676.36,675.09,0.29625679]
[1738058247728,1.10978108,676.25,675.09,0.29625679]
[1738058247927,0.27197293,676.24,675.09,0.29625679]
[1738058250829,0.27197293,676.23,675.09,0.29625679]
[1738058251029,0.27197293,676.22,675.09,0.29625679]
[1738058251229,1.10978108,676.27,675.09,0.29625679]
[1738058251426,0.27197854,676.26,675.09,0.29625679]
[1738058251933,1.10978108,676.27,675.09,0.29625679]
[1738058252129,0.27197854,676.26,675.09,0.29625679]
[1738058253731,0.27197726,676.25,675.09,0.29625679]
[1738058253931,0.27197726,676.26,675.09,0.29625679]
[1738058254124,0.27197726,676.25,675.09,0.29625679]
[1738058254329,0.27197726,676.26,675.09,0.29625679]
[1738058254530,0.27197726,676.25,675.09,0.29625679]
[1738058254724,0.27197726,676.26,675.09,0.29625679]
[1738058254926,1.10978108,676.14,675.14,1.10978108]
[1738058255131,0.27197726,676.13,675.14,1.10978108]
[1738058255426,0.2719789,676.12,675.14,1.10978108]
[1738058255630,1.10978108,676.14,675.14,1.10978108]
[1738058255631,0.2719789,676.11,675.14,1.10978108]
[1738058255832,0.2719789,676.13,675.14,1.10978108]
[1738058256033,0.2719789,676.12,675.14,1.10978108]
[1738058256225,0.2719789,676.13,675.14,1.10978108]
[1738058256430,0.2719789,676.12,675.14,1.10978108]
[1738058256732,0.2719789,676.11,675.14,1.10978108]
[1738058256931,0.2719789,676.1,675.14,1.10978108]
[1738058257132,0.2719789,676.13,675.14,1.10978108]
[1738058257332,0.2719789,676.13,675.12,1.10978108]
[1738058257626,0.2719789,676.12,675.12,1.10978108]
[1738058257827,0.2719789,676.15,675.12,1.10978108]
[1738058258031,0.2719789,676.14,675.12,1.10978108]
[1738058258327,1.10978108,676.16,675.12,1.10978108]
[1738058260334,0.2720152,676.15,675.09,0.29625679]
[1738058260532,0.2720272,676.14,675.09,0.29625679]
[1738058260831,0.2720272,676.13,675.09,0.29625679]
[1738058261033,0.2720272,676.23,675.09,0.29625679]
[1738058261234,0.2720272,676.22,675.09,0.29625679]
[1738058261435,0.2720272,676.23,675.09,0.29625679]
[1738058261631,0.2720272,676.22,675.09,0.29625679]
[1738058261828,0.2720272,676.23,675.09,0.29625679]
[1738058262032,1.10978108,676.24,675.09,0.29625679]
[1738058262033,0.2720272,676.22,675.09,0.29625679]
[1738058262336,0.2720272,676.21,675.09,0.29625679]
[1738058262534,0.2720272,676.23,675.09,0.29625679]
[1738058262733,0.2720272,676.22,675.09,0.29625679]
[1738058263034,0.2720272,676.21,675.09,0.29625679]
[1738058263234,0.2720272,676.2,675.09,0.29625679]
[1738058263430,0.2720272,676.23,675.09,0.29625679]
[1738058263635,0.2720272,676.22,675.09,0.29625679]
[1738058263834,0.2720272,676.23,675.09,0.29625679]
[1738058264035,0.27201952,676.22,675.09,0.29625679]
[1738058264237,1.10978108,676.15,675.09,0.29625679]
[1738058264434,0.27201952,676.14,675.09,0.29625679]
[1738058265734,1.10978108,676.15,675.09,0.29625679]
[1738058268139,1.54499007,676.29,675.09,0.29625679]
[1738058268337,0.27200246,676.28,675.09,0.29625679]
[1738058269140,0.27200632,676.27,675.09,0.29625679]
[1738058269439,1.54499007,676.29,675.09,0.29625679]
[1738058269640,0.27200545,676.28,675.09,0.29625679]
[1738058271939,0.27200888,676.27,675.09,0.29625679]
[1738058272239,0.27200888,676.26,675.09,0.29625679]
[1738058272432,0.27200888,676.28,675.09,0.29625679]
[1738058272635,0.27200773,676.27,675.09,0.29625679]
[1738058272838,0.27200773,676.26,675.09,0.29625679]
[1738058273140,1.54499007,676.29,675.09,0.29625679]
[1738058273340,0.27200791,676.28,675.09,0.29625679]
[1738058274345,0.27200785,676.27,675.09,0.29625679]
[1738058274538,0.27200785,676.26,675.09,0.29625679]
[1738058274740,0.27200785,676.28,675.09,0.29625679]
[1738058279749,1.10978108,676.19,675.09,0.29625679]
[1738058279945,0.27200785,676.18,675.09,0.29625679]
[1738058280749,1.10978108,676.19,675.09,0.29625679]
[1738058280951,0.2719871,676.17,675.09,0.29625679]
[1738058281151,0.2719871,676.16,675.09,0.29625679]
[1738058281352,0.27198743,676.15,675.09,0.29625679]
[1738058281650,0.27198743,676.14,675.09,0.29625679]
[1738058281850,1.10978108,676.19,675.09,0.29625679]
[1738058282854,1.10978108,676.2,675.09,0.29625679]
[1738058284257,0.27198134,676.19,675.09,0.29625679]
[1738058284649,1.10978108,676.2,675.09,0.29625679]
[1738058284853,0.27198658,676.19,675.09,0.29625679]
[1738058286157,1.10978108,676.2,675.09,0.29625679]
[1738058286351,1.10978108,676.25,675.09,0.29625679]
[1738058287553,0.27194146,676.24,675.09,0.29625679]
[1738058289359,0.27194146,676.24,675.15,1.10978108]
[1738058289660,0.27194146,676.23,675.15,1.10978108]
[1738058289854,1.10978108,676.3,675.15,1.10978108]
[1738058290053,0.27194647,676.29,675.15,1.10978108]
[1738058291258,1.10978108,676.3,675.15,1.10978108]
[1738058291761,0.27196152,676.29,675.15,1.10978108]
[1738058291958,1.10978108,676.3,675.15,1.10978108]
[1738058292859,1.10978108,676.32,675.11,1.10978108]
[1738058294457,1.10978108,676.32,675.12,0.29624363]
[1738058296765,1.54491005,676.42,675.12,0.29624363]
[1738058296965,0.27193925,676.41,675.12,0.29624363]
[1738058297466,0.27193825,676.4,675.12,0.29624363]
[1738058297666,0.27193825,676.41,675.12,0.29624363]
[1738058297867,1.54491005,676.42,675.12,0.29624363]
[1738058297868,0.27193825,676.4,675.12,0.29624363]
[1738058298169,0.27193825,676.39,675.12,0.29624363]
[1738058298466,0.27193825,676.38,675.12,0.29624363]
[1738058298765,0.27193825,676.37,675.12,0.29624363]
[1738058298960,1.54491005,676.42,675.12,0.29624363]
[1738058298961,0.27193825,676.41,675.12,0.29624363]
[1738058299165,0.27193825,676.4,675.12,0.29624363]
[1738058299365,0.27193825,676.41,675.12,0.29624363]
[1738058299566,0.27193825,676.39,675.12,0.29624363]
[1738058299766,0.27193825,676.38,675.12,0.29624363]
[1738058299968,0.27193825,676.41,675.12,0.29624363]
[1738058300167,0.27193825,676.4,675.12,0.29624363]
[1738058300367,0.27193825,676.41,675.12,0.29624363]
[1738058300568,1.54491005,676.42,675.12,0.29624363]
[1738058300769,0.27194669,676.41,675.12,0.29624363]
[1738058304370,1.10978108,676.4,675.12,0.29624363]
[1738058304569,0.27194669,676.39,675.12,0.29624363]
[1738058307673,1.10978108,676.38,675.12,0.29624363]
[1738058307872,0.27194669,676.37,675.12,0.29624363]
[1738058308276,0.27194669,676.36,675.12,0.29624363]
[1738058308470,1.54491005,676.42,675.12,0.29624363]
[1738058308471,0.27194669,676.35,675.12,0.29624363]
[1738058308671,0.27194669,676.41,675.12,0.29624363]
[1738058308875,1.54491005,676.42,675.12,0.29624363]
[1738058308876,0.27194669,676.4,675.12,0.29624363]
[1738058309077,0.27194669,676.41,675.12,0.29624363]
[1738058309277,0.27194669,676.4,675.12,0.29624363]
[1738058309476,0.27194669,676.41,675.12,0.29624363]
[1738058312378,0.27194669,676.4,675.12,0.29624363]
[1738058312575,0.27194669,676.39,675.12,0.29624363]
[1738058312778,1.54491005,676.42,675.12,0.29624363]
[1738058312779,0.27194669,676.38,675.12,0.29624363]
[1738058312974,0.27194669,676.37,675.12,0.29624363]
[1738058313179,0.27194669,676.36,675.12,0.29624363]
[1738058313579,0.27194669,676.35,675.12,0.29624363]
[1738058313876,1.54491005,676.42,675.12,0.29624363]
[1738058313877,0.27194669,676.34,675.12,0.29624363]
[1738058314075,0.27194669,676.33,675.12,0.29624363]
[1738058314380,1.54491005,676.42,675.12,0.29624363]
[1738058314578,0.27191656,676.41,675.12,0.29624363]
[1738058318286,1.10760683,676.27,675.19,1.10763873]
[1738058318781,1.10760683,676.27,675.19,1.40385164]
[1738058321785,1.54491005,676.42,675.19,0.29621291]
[1738058321977,0.27192026,676.41,675.19,0.29621291]
[1738058345203,1.10833642,676.4,675.22,1.10754401]
[1738058345402,0.27192842,676.39,675.22,1.10754401]
[1738058345801,0.27192842,676.39,675.19,0.29621291]
[1738058345997,0.27192842,676.38,675.19,0.29621291]
[1738058346203,0.27192842,676.41,675.19,0.29621291]
[1738058346504,0.27192842,676.4,675.19,0.29621291]
[1738058346698,0.27192842,676.41,675.19,0.29621291]
[1738058347004,0.27192842,676.4,675.19,0.29621291]
[1738058347197,0.27192842,676.39,675.19,0.29621291]
[1738058347397,0.27192842,676.38,675.19,0.29621291]
[1738058347598,0.27192842,676.37,675.19,0.29621291]
[1738058347904,0.27192842,676.36,675.19,0.29621291]
[1738058348100,0.27192842,676.41,675.19,0.29621291]
[1738058348702,1.54491005,676.42,675.19,0.29621291]
[1738058348902,0.27192454,676.41,675.19,0.29621291]
[1738058349599,0.27192454,676.4,675.19,0.29621291]
[1738058349802,0.27192454,676.39,675.19,0.29621291]
[1738058350001,0.27192454,676.38,675.19,0.29621291]
[1738058350206,0.27192454,676.37,675.19,0.29621291]
[1738058350501,1.54491005,676.42,675.19,0.29621291]
[1738058350703,0.27192268,676.41,675.19,0.29621291]
[1738058350907,0.27192268,676.4,675.19,0.29621291]
[1738058351106,0.27192268,676.39,675.19,0.29621291]
[1738058351306,0.27192268,676.41,675.19,0.29621291]
[1738058351507,0.27192268,676.4,675.19,0.29621291]
[1738058351707,0.27192268,676.41,675.19,0.29621291]
[1738058351902,0.27192268,676.4,675.19,0.29621291]
[1738058352106,0.27192268,676.41,675.19,0.29621291]
[1738058352303,1.10940549,676.19,675.36,1.10878827]
[1738058352602,0.27192268,676.18,675.36,1.10878827]
[1738058352805,1.10940549,676.19,675.36,1.10878827]
[1738058353203,0.27191635,676.18,675.36,1.10878827]
[1738058355506,1.10940549,676.17,675.4,1.10878827]
[1738058355709,0.27191635,676.16,675.4,1.10878827]
[1738058357711,0.27191635,676.16,675.41,1.10878827]
[1738058360108,1.10940549,676.17,675.41,1.10878827]
[1738058360314,0.27192266,676.16,675.41,1.10878827]
[1738058362913,1.10940549,676.17,675.41,1.10878827]
[1738058363111,0.27190722,676.16,675.41,1.10878827]
[1738058363912,0.27190722,676.16,675.38,1.10878827]
[1738058364111,0.27190722,676.19,675.38,1.10878827]
[1738058364316,0.27190722,676.18,675.38,1.10878827]
[1738058364513,0.27190722,676.19,675.38,1.10878827]
[1738058364718,1.10940549,676.2,675.38,1.10878827]
[1738058365020,0.27191792,676.19,675.38,1.10878827]
[1738058366220,1.10940549,676.16,675.39,1.10878827]
[1738058368220,1.10940549,676.21,675.36,1.10878827]
[1738058368421,0.27191412,676.2,675.36,1.10878827]
[1738058371114,0.27191412,676.2,675.19,0.29621291]
[1738058371115,1.38131961,676.2,675.35,1.10878827]
[1738058371313,0.27191412,676.19,675.35,1.10878827]
[1738058371521,1.10940549,676.2,675.35,1.10878827]
[1738058371716,0.27192137,676.19,675.35,1.10878827]
[1738058372823,1.10940549,676.2,675.35,1.10878827]
[1738058373022,0.27192081,676.19,675.35,1.10878827]
[1738058373218,1.10940549,676.2,675.35,1.10878827]
[1738058374015,0.27195687,676.19,675.35,1.10878827]
[1738058375728,1.10940549,676.18,675.34,1.10878827]
[1738058375928,0.27195687,676.17,675.34,1.10878827]
[1738058378431,0.27195687,676.17,675.19,0.29621291]
[1738058378432,1.10940549,676.15,675.19,0.29621291]
[1738058378631,0.27195687,676.14,675.19,0.29621291]
[1738058381933,0.27195687,676.13,675.19,0.29621291]
[1738058382127,0.27195687,676.12,675.19,0.29621291]
[1738058382331,0.27195687,676.11,675.19,0.29621291]
[1738058382532,0.27195687,676.19,675.19,0.29621291]
[1738058382732,0.27195687,676.18,675.19,0.29621291]
[1738058382930,0.27195687,676.19,675.19,0.29621291]
[1738058383133,0.27195687,676.18,675.19,0.29621291]
[1738058383334,0.27195687,676.19,675.19,0.29621291]
[1738058383535,0.27195687,676.18,675.19,0.29621291]
[1738058383737,0.27195687,676.17,675.19,0.29621291]
[1738058383935,0.27195687,676.19,675.19,0.29621291]
[1738058384234,0.27195687,676.18,675.19,0.29621291]
[1738058384436,0.27195687,676.17,675.19,0.29621291]
[1738058384639,0.27195687,676.16,675.19,0.29621291]
[1738058384935,0.27195687,676.15,675.19,0.29621291]
[1738058385136,0.27195687,676.24,675.19,0.29621291]
[1738058385337,0.27195687,676.23,675.19,0.29621291]
[1738058385537,0.27195687,676.24,675.19,0.29621291]
[1738058385739,0.27195687,676.23,675.19,0.29621291]
[1738058386037,0.27195687,676.22,675.19,0.29621291]
[1738058386238,1.10940549,676.2,675.19,0.29621291]
[1738058386538,0.27195687,676.19,675.19,0.29621291]
[1738058388938,0.27195687,676.2,675.19,0.29621291]
[1738058389238,0.27195687,676.19,675.19,0.29621291]
[1738058389440,0.27195687,676.2,675.19,0.29621291]
[1738058389642,0.27195687,676.19,675.19,0.29621291]
[1738058389936,0.27195687,676.2,675.19,0.29621291]
[1738058390140,0.27195687,676.19,675.19,0.29621291]
[1738058390439,0.27195687,676.18,675.19,0.29621291]
[1738058390641,1.10940549,676.21,675.19,0.29621291]
[1738058390839,0.27195466,676.2,675.19,0.29621291]
[1738058391441,0.27195466,676.21,675.19,0.29621291]
[1738058395241,0.27195466,676.26,675.19,0.29621291]
[1738058395438,0.27195466,676.25,675.19,0.29621291]
[1738058395642,0.27195466,676.26,675.19,0.29621291]
[1738058395842,0.27195022,676.25,675.19,0.29621291]
[1738058396038,0.27195022,676.24,675.19,0.29621291]
[1738058396342,0.27195022,676.23,675.19,0.29621291]
[1738058396543,0.27195022,676.26,675.19,0.29621291]
[1738058396842,0.27195022,676.25,675.19,0.29621291]
[1738058397045,0.27195022,676.24,675.19,0.29621291]
[1738058397243,0.27195022,676.26,675.19,0.29621291]
[1738058397442,0.27195022,676.25,675.19,0.29621291]
[1738058397639,1.10940549,676.27,675.19,0.29621291]
[1738058397640,0.27195022,676.26,675.19,0.29621291]
[1738058397945,0.27195022,676.25,675.19,0.29621291]
[1738058398145,0.27195022,676.26,675.19,0.29621291]
[1738058398347,1.10940549,676.25,675.19,0.29621291]
[1738058398544,0.27195022,676.24,675.19,0.29621291]
[1738058399747,0.27195022,676.23,675.19,0.29621291]
[1738058400046,0.27195022,676.22,675.19,0.29621291]
[1738058400247,0.27195022,676.21,675.19,0.29621291]
[1738058400440,0.27195022,676.2,675.19,0.29621291]
[1738058400643,0.27195022,676.34,675.19,0.29621291]
[1738058400846,0.27195022,676.33,675.19,0.29621291]
[1738058401047,0.27195022,676.34,675.19,0.29621291]
[1738058401245,0.27195022,676.33,675.19,0.29621291]
[1738058401444,0.27195022,676.34,675.19,0.29621291]
[1738058401647,1.54476718,676.35,675.19,0.29621291]
[1738058401648,0.27195022,676.33,675.19,0.29621291]
[1738058401852,0.27195022,676.32,675.19,0.29621291]
[1738058402046,0.27195022,676.34,675.19,0.29621291]
[1738058402251,0.27195022,676.33,675.19,0.29621291]
[1738058402450,0.27195022,676.34,675.19,0.29621291]
[1738058402653,0.27195022,676.33,675.19,0.29621291]
[1738058402846,0.27195022,676.34,675.19,0.29621291]
[1738058403053,0.27195022,676.33,675.19,0.29621291]
[1738058403247,0.27195022,676.34,675.19,0.29621291]
[1738058403447,0.27195022,676.33,675.19,0.29621291]
[1738058403852,0.27195022,676.32,675.19,0.29621291]
[1738058404052,0.27195022,676.31,675.19,0.29621291]
[1738058404253,1.10775086,676.18,675.2,1.10744563]
[1738058404555,0.27195022,676.17,675.2,1.10744563]
[1738058406554,0.27195022,676.17,675.27,1.10744563]
[1738058409157,1.10775086,676.16,675.25,1.10744563]
[1738058409658,0.27195562,676.15,675.25,1.10744563]
[1738058410351,0.27195562,676.15,675.19,0.29621291]
[1738058410656,0.27195562,676.14,675.19,0.29621291]
[1738058410857,0.27195562,676.13,675.19,0.29621291]
[1738058411055,0.27195562,676.34,675.19,0.29621291]
[1738058411251,0.27195562,676.12,675.19,0.29621291]
[1738058411457,0.27195562,676.11,675.19,0.29621291]
[1738058411753,0.27195562,676.1,675.19,0.29621291]
[1738058411954,1.54496149,676.24,675.19,0.29621291]
[1738058412155,0.27195562,676.23,675.19,0.29621291]
[1738058412355,0.27195562,676.23,675.2,1.10780134]
[1738058412356,1.10857108,676.18,675.2,1.10780134]
[1738058412657,0.27195562,676.17,675.2,1.10780134]
[1738058412955,1.10857108,676.18,675.2,1.10780134]
[1738058413555,0.27197426,676.17,675.2,1.10780134]
[1738058413856,1.10857108,676.18,675.2,1.10780134]
[1738058414753,0.27197456,676.17,675.2,1.10780134]
[1738058415353,0.27197456,676.17,675.19,0.29621291]